bitfinex/quotes_SOLUSD_20251204
["timestamp","ask_amount","ask_price","bid_price","bid_amount"]
[1764837115392,0.68,142.84,142.81,0.67]
[1764837115981,7.68087419,142.84,142.81,0.67]
[1764837120398,7.68087419,142.84,142.81,11.79084297]
[1764837120600,7.68017086,142.86,142.82,4.11858622]
[1764837120775,0.68,142.85,142.82,4.78858622]
[1764837120977,7.68017086,142.86,142.83,0.67]
[1764837121179,7.00017086,142.86,142.83,4.78858622]
[1764837121378,8.38,142.89,142.84,4.11858622]
[1764837121577,0.68,142.88,142.84,4.78858622]
[1764837122601,7.67923409,142.88,142.84,4.78858622]
[1764837123096,7.67923409,142.88,142.85,0.67]
[1764837123594,31.00748323,142.89,142.85,0.67]
[1764837123904,6.99861923,142.89,142.86,4.11858622]
[1764837124077,6.99861923,142.89,142.86,4.78858622]
[1764837124489,6.99861923,142.89,142.86,0.67]
[1764837124799,7.67861923,142.89,142.86,4.78858622]
[1764837126002,7.67861923,142.89,142.86,0.67]
[1764837126228,16.988864,142.88,142.83,4.11858622]
[1764837126698,6.99986,142.86,142.83,4.78858622]
[1764837127105,7.67986,142.86,142.83,4.78858622]
[1764837127285,7.67986,142.86,142.83,0.67]
[1764837131209,6.99937005,142.87,142.82,7.67153489]
[1764837131504,0.68,142.85,142.81,11.79077624]
[1764837131688,0.68,142.85,142.82,7.00180478]
[1764837131893,0.68,142.85,142.82,7.67180478]
[1764837133606,7.68056446,142.85,142.82,0.67]
[1764837134305,7.66056446,142.85,142.81,7.71209707]
[1764837134504,7.66056446,142.85,142.82,0.71]
[1764837136407,7.66056446,142.85,142.82,4.82858622]
[1764837138011,7.66056446,142.85,142.82,11.83038632]
[1764837138389,6.99993496,142.86,142.82,11.12038632]
[1764837138593,0.66,142.87,142.83,4.82858622]
[1764837138808,0.66,142.87,142.83,0.71]
[1764837139109,0.66,142.87,142.84,0.71]
[1764837139307,7.7,142.89,142.84,4.82858622]
[1764837139506,7.65851294,142.89,142.85,4.11858622]
[1764837139691,0.66,142.88,142.85,4.82858622]
[1764837140091,7.65902842,142.88,142.85,4.82858622]
[1764837141299,6.99853588,142.89,142.86,0.71]
[1764837141494,7.65853588,142.89,142.86,0.71]
[1764837141900,0.66,142.88,142.84,7.71076148]
[1764837142210,7.65899326,142.88,142.84,11.8293477]
[1764837142896,7.65899326,142.88,142.84,7.00076148]
[1764837143094,7.65899326,142.88,142.85,0.71]
[1764837144013,6.99899326,142.88,142.84,11.1193477]
[1764837144185,0.66,142.87,142.83,11.82974677]
[1764837144598,0.66,142.87,142.83,11.11974677]
[1764837144799,0.66,142.87,142.84,0.71]
[1764837145014,7.65899326,142.88,142.85,4.11858622]
[1764837145192,0.66,142.87,142.84,11.8293309]
[1764837145513,7.65899326,142.88,142.85,0.71]
[1764837145716,6.99899326,142.88,142.84,7.00074468]
[1764837145898,0.66,142.87,142.84,4.82858622]
[1764837147412,7.65899326,142.88,142.85,4.11858622]
[1764837147620,0.66,142.87,142.84,11.82941707]
[1764837148013,7.65899326,142.88,142.84,11.82941707]
[1764837148213,7.65899326,142.88,142.85,0.71]
[1764837149403,6.99899326,142.88,142.82,17.50390317]
[1764837149698,0.66,142.91,142.87,4.11858622]
[1764837149910,0.66,142.91,142.88,4.11858622]
[1764837150116,7.65663646,142.93,142.89,4.11858622]
[1764837150318,7.65663646,142.93,142.9,4.11858622]
[1764837150999,7.65663646,142.93,142.9,4.82858622]
[1764837151195,7.65663646,142.93,142.9,4.11858622]
[1764837151410,0.66,142.92,142.9,4.11858622]
[1764837152303,0.66,142.92,142.89,11.11661558]
[1764837152696,0.66,142.92,142.89,11.82661558]
[1764837152892,7.65714265,142.92,142.85,18.21022297]
[1764837153099,11.11572887,142.92,142.86,11.11823073]
[1764837153300,0.66,142.91,142.86,11.11823073]
[1764837153503,0.66,142.91,142.87,4.11858622]
[1764837153705,0.66,142.91,142.88,4.11858622]
[1764837154927,7.65752736,142.91,142.88,4.11858622]
[1764837155134,23.96590351,142.92,142.88,7.70884013]
[1764837155427,23.96590351,142.92,142.89,4.82858622]
[1764837156243,23.96590351,142.92,142.88,7.70884013]
[1764837156244,0.66,142.91,142.88,7.70884013]
[1764837156426,0.66,142.91,142.89,4.11858622]
[1764837157028,0.66,142.91,142.88,11.82742635]
[1764837157322,0.66,142.91,142.88,11.11742635]
[1764837158816,0.66,142.91,142.88,11.82742635]
[1764837159224,6.99790062,142.9,142.86,7.70950793]
[1764837159410,6.99790062,142.9,142.88,4.11858622]
[1764837159611,0.66,142.93,142.89,4.11858622]
[1764837159811,16.968864,142.93,142.9,4.11858622]
[1764837160330,0.68,142.92,142.9,4.11858622]
[1764837160828,16.308864,142.93,142.9,4.11858622]
[1764837161012,16.988864,142.93,142.9,4.78858622]
[1764837161732,23.98557808,142.93,142.9,4.78858622]
[1764837162226,0.68,142.93,142.91,4.11858622]
[1764837162434,6.99611894,142.94,142.91,4.78858622]
[1764837162734,7.65611894,142.94,142.91,4.78858622]
[1764837162929,7.65611894,142.94,142.91,4.11858622]
[1764837163308,0.66,142.93,142.91,4.11858622]
[1764837164733,7.65652287,142.93,142.9,11.11631804]
[1764837164905,7.65652287,142.93,142.9,4.11858622]
[1764837166333,7.65652287,142.93,142.9,4.79858622]
[1764837166710,7.65652287,142.93,142.9,4.11858622]
[1764837167135,7.65652287,142.93,142.89,7.67828235]
[1764837167327,7.65652287,142.93,142.9,4.11858622]
[1764837167935,7.65652287,142.93,142.9,4.79858622]
[1764837168925,0.66,142.92,142.87,16.48931497]
[1764837169130,0.66,142.92,142.87,19.92790119]
[1764837169331,0.66,142.92,142.87,20.60790119]
[1764837170642,7.65728157,142.92,142.88,4.11858622]
[1764837171123,0.66,142.91,142.88,4.11858622]
[1764837171324,0.66,142.91,142.88,4.79858622]
[1764837171840,0.66,142.94,142.89,4.79858622]
[1764837172133,25.14481403,142.95,142.92,4.11858622]
[1764837172341,0.66,142.94,142.92,4.11858622]
[1764837173027,7.65616148,142.94,142.92,4.11858622]
[1764837173520,7.65616148,142.94,142.91,4.11858622]
[1764837173720,7.65616148,142.94,142.89,7.67810518]
[1764837173721,0.66,142.93,142.89,7.67810518]
[1764837173921,0.66,142.93,142.9,4.11858622]
[1764837175129,7.65677336,142.93,142.9,4.11858622]
[1764837176335,7.65677336,142.93,142.9,2.63239022]
[1764837177137,6.99609246,142.94,142.91,2.63239022]
[1764837177324,7.65609246,142.94,142.91,3.31239022]
[1764837177933,0.66,142.94,142.91,3.31239022]
[1764837178129,7.65512986,142.96,142.93,2.63239022]
[1764837178538,7.65512986,142.96,142.93,3.31239022]
[1764837179339,0.66,142.95,142.92,6.99675153]
[1764837179642,6.99512986,142.96,142.93,2.63239022]
[1764837179816,0.66,142.95,142.93,2.63239022]
[1764837180019,7.65512986,142.96,142.93,9.62882072]
[1764837180842,0.66,142.96,142.93,10.30882072]
[1764837181843,0.66,142.96,142.93,9.62882072]
[1764837183845,7.65505318,142.96,142.93,9.62882072]
[1764837184222,0.66,142.95,142.93,9.62882072]
[1764837184545,6.9946543,142.97,142.93,9.62882072]
[1764837184839,23.30308337,142.98,142.94,2.63239022]
[1764837185040,0.66,142.99,142.95,2.63239022]
[1764837185241,0.66,142.99,142.94,3.31239022]
[1764837185431,0.66,142.99,142.94,2.63239022]
[1764837185742,6.99398517,142.98,142.92,7.67671246]
[1764837185944,25.93523939,142.98,142.92,9.62910268]
[1764837186282,0.66,142.97,142.92,9.62910268]
[1764837186628,0.66,142.97,142.92,10.30910268]
[1764837187950,6.99496362,142.96,142.92,10.30910268]
[1764837188328,0.66,142.95,142.92,10.30910268]
[1764837188531,0.66,142.95,142.93,2.63239022]
[1764837188846,6.99464123,142.97,142.93,2.63239022]
[1764837189044,7.65464123,142.97,142.94,3.31239022]
[1764837189430,0.66,142.97,142.94,3.31239022]
[1764837190128,0.66,142.97,142.94,10.30803097]
[1764837190330,7.65466973,142.97,142.94,2.63239022]
[1764837190948,0.66,142.96,142.94,2.63239022]
[1764837191250,7.65466973,142.97,142.94,2.63239022]
[1764837192343,0.66,142.96,142.89,0.68]
[1764837192524,3.29239022,142.96,142.91,9.6296262]
[1764837192930,0.68,142.95,142.91,9.6296262]
[1764837193450,0.68,142.95,142.92,6.99690765]
[1764837193627,0.68,142.95,142.91,2.63239022]
[1764837193827,0.68,142.95,142.91,3.31239022]
[1764837194250,7.67579428,142.95,142.91,10.30970364]
[1764837196358,7.67579428,142.95,142.91,3.31239022]
[1764837196536,0.68,142.94,142.91,3.31239022]
[1764837197450,0.68,142.94,142.89,10.31058121]
[1764837197655,0.68,142.94,142.89,9.63058121]
[1764837198133,0.68,142.94,142.89,10.31058121]
[1764837198656,6.99643181,142.93,142.89,10.31058121]
[1764837199141,7.67643181,142.93,142.89,10.31058121]
[1764837199556,7.67643181,142.93,142.9,2.63239022]
[1764837200057,7.67610177,142.94,142.92,2.63239022]
[1764837200258,7.67610177,142.94,142.91,3.31239022]
[1764837200455,0.68,142.94,142.92,2.63239022]
[1764837200758,7.67516232,142.96,142.93,2.63239022]
[1764837200954,7.67462675,142.97,142.94,2.63239022]
[1764837201295,6.99462675,142.97,142.9,24.49245526]
[1764837201556,6.99462675,142.97,142.93,10.30869473]
[1764837201758,7.67462675,142.97,142.94,2.63239022]
[1764837202632,7.67364752,142.99,142.95,3.31239022]
[1764837203063,3.31239022,142.98,142.92,9.6292249]
[1764837203556,7.67486967,142.97,142.93,2.63239022]
[1764837203758,7.67486967,142.97,142.93,9.6287737]
[1764837203962,0.68,142.96,142.93,9.6287737]
[1764837204458,0.68,142.96,142.93,7.67638348]
[1764837204753,0.68,142.96,142.93,0.68]
[1764837205560,0.68,142.96,142.93,3.31239022]
[1764837205739,0.68,142.96,142.93,10.30880408]
[1764837205935,7.67513564,142.96,142.92,6.99677548]
[1764837206261,7.67513564,142.96,142.92,10.3091657]
[1764837207163,0.68,142.95,142.92,10.3091657]
[1764837207660,7.67447436,142.97,142.94,2.63239022]
[1764837207866,6.99447436,142.97,142.93,3.31239022]
[1764837208165,0.68,142.96,142.93,10.30882162]
[1764837208458,0.68,142.96,142.93,9.62882162]
[1764837208664,6.99447436,142.97,142.93,10.30882162]
[1764837208861,6.99447436,142.97,142.94,3.31239022]
[1764837209362,7.67447436,142.97,142.94,3.31239022]
[1764837209561,7.67447436,142.97,142.9,7.67778118]
[1764837209562,7.67505361,142.96,142.9,7.67778118]
[1764837209768,7.67505361,142.96,142.9,10.3101714]
[1764837209954,0.68,142.95,142.9,10.3101714]
[1764837210151,0.68,142.95,142.9,7.67778118]
[1764837210358,0.68,142.95,142.9,10.3101714]
[1764837211870,6.99594235,142.94,142.9,10.3101714]
[1764837212368,6.99594235,142.94,142.9,7.67778118]
[1764837212547,7.67594235,142.94,142.9,7.67778118]
[1764837212747,0.68,142.93,142.89,6.99817634]
[1764837213168,0.68,142.93,142.89,7.67817634]
[1764837213473,0.68,142.93,142.89,6.99817634]
[1764837213658,0.68,142.93,142.9,7.67782418]
[1764837214062,7.67671827,142.93,142.88,0.68]
[1764837214261,7.67671827,142.93,142.89,7.67838982]
[1764837215778,0.68,142.95,142.9,0.68]
[1764837216775,7.67560821,142.95,142.91,6.99741095]
[1764837217152,0.68,142.94,142.91,6.99741095]
[1764837217353,0.68,142.94,142.91,7.67741095]
[1764837217555,3.31239022,142.94,142.86,3.31239022]
[1764837217759,3.31239022,142.94,142.87,0.68]
[1764837217963,0.68,142.93,142.87,0.68]
[1764837218578,0.68,142.93,142.88,6.99877523]
[1764837218750,23.30622169,142.92,142.87,0.68]
[1764837219149,0.68,142.91,142.87,0.68]
[1764837219765,0.68,142.93,142.88,18.44107787]
[1764837219966,0.68,142.92,142.88,6.99874273]
[1764837220276,0.68,142.92,142.88,7.67874273]
[1764837221358,7.67717033,142.92,142.88,7.67874273]
[1764837222971,7.67717033,142.92,142.88,10.31113295]
[1764837224468,7.67717033,142.92,142.88,7.67874273]
[1764837224668,6.99643181,142.93,142.88,10.31113295]
[1764837224865,0.69,142.91,142.88,10.31113295]
[1764837225069,0.69,142.92,142.88,10.31113295]
[1764837225472,0.69,142.92,142.89,0.69]
[1764837226771,0.69,142.92,142.89,7.68823759]
[1764837229377,0.69,142.92,142.84,52.50142655]
[1764837229378,2.63239022,142.9,142.81,7.65372334]
[1764837229561,2.63239022,142.9,142.84,7.00063047]
[1764837229761,6.99888017,142.88,142.84,7.00063047]
[1764837230162,0.69,142.87,142.84,7.69063047]
[1764837231086,7.68952936,142.87,142.83,7.69113098]
[1764837232068,7.68952936,142.87,142.83,9.6335212]
[1764837232385,7.68952936,142.87,142.83,10.3235212]
[1764837233385,7.68952936,142.87,142.84,0.69]
[1764837233879,7.68952936,142.87,142.83,10.3235212]
[1764837234086,7.68952936,142.87,142.84,0.69]
[1764837234389,0.69,142.87,142.84,9.63300388]
[1764837234684,0.69,142.87,142.84,7.00061366]
[1764837235263,0.69,142.87,142.84,7.69061366]
[1764837235579,7.68938573,142.87,142.83,10.32349577]
[1764837236082,7.68938573,142.87,142.84,7.00076881]
[1764837237784,7.68938573,142.87,142.83,10.32349994]
[1764837238082,0.69,142.86,142.81,23.31099612]
[1764837238393,4.80855737,142.86,142.81,24.00099612]
[1764837238804,0.69,142.86,142.81,28.11955349]
[1764837238967,0.69,142.85,142.81,28.11955349]
[1764837239168,0.69,142.85,142.81,0.69]
[1764837239370,0.69,142.85,142.8,11.22114869]
[1764837239575,4.80855737,142.85,142.8,0.79]
[1764837239770,7.0008401,142.84,142.8,0.79]
[1764837239979,7.6908401,142.84,142.8,7.79270496]
[1764837240286,0.69,142.83,142.8,0.1]
[1764837241366,0.69,142.83,142.8,7.10268554]
[1764837244291,0.69,142.83,142.8,11.22124291]
[1764837245177,7.0008401,142.84,142.8,11.22124291]
[1764837245378,0.69,142.83,142.8,11.91124291]
[1764837247695,7.0008401,142.84,142.8,11.91124291]
[1764837247900,0.69,142.87,142.83,4.11855737]
[1764837248095,0.69,142.87,142.84,4.11855737]
[1764837248483,0.69,142.87,142.84,4.80855737]
[1764837248799,0.69,142.87,142.84,11.80913919]
[1764837248996,0.69,142.89,142.86,4.11855737]
[1764837249382,0.69,142.9,142.86,4.80855737]
[1764837249802,0.69,142.9,142.86,4.11855737]
[1764837250104,0.69,142.9,142.85,0.69]
[1764837250307,0.69,142.9,142.86,4.11855737]
[1764837250793,0.69,142.9,142.87,4.11855737]
[1764837250995,0.69,142.91,142.88,4.11855737]
[1764837251195,7.68663089,142.93,142.89,4.11855737]
[1764837251398,0.69,142.92,142.89,4.11855737]
[1764837251600,0.69,142.92,142.89,4.80855737]
[1764837251906,0.69,142.92,142.89,4.11855737]
[1764837252107,0.69,142.92,142.88,4.80855737]
[1764837252308,0.69,142.92,142.88,11.80696174]
[1764837254306,0.67,142.95,142.91,4.11855737]
[1764837254510,0.67,142.95,142.92,4.11855737]
[1764837254808,0.67,142.95,142.92,4.77855737]
[1764837255393,0.67,142.95,142.92,11.77520219]
[1764837256023,0.67,142.95,142.93,4.11855737]
[1764837256223,0.67,142.96,142.93,4.11855737]
[1764837256407,7.66413344,142.98,142.95,4.11855737]
[1764837256590,0.67,142.98,142.95,4.11855737]
[1764837257200,0.67,142.98,142.95,4.77855737]
[1764837257420,0.67,142.98,142.95,11.77398637]
[1764837257915,7.66359825,142.99,142.96,4.11855737]
[1764837258295,0.67,142.98,142.96,4.11855737]
[1764837258918,0.67,142.98,142.95,11.77398637]
[1764837259423,16.308864,142.97,142.91,4.77855737]
[1764837259607,20.42742137,142.97,142.91,4.77855737]
[1764837259806,0.67,142.96,142.92,11.11514916]
[1764837261375,0.67,142.96,142.93,4.11855737]
[1764837261619,0.67,142.98,142.94,4.11855737]
[1764837261993,0.67,142.98,142.95,4.77855737]
[1764837263019,0.67,142.98,142.95,11.11372875]
[1764837263804,0.67,142.98,142.94,0.66]
[1764837263805,11.78258241,142.98,142.92,4.11855737]
[1764837264009,4.11855737,142.97,142.91,37.9204953]
[1764837264319,4.78855737,142.97,142.91,37.9204953]
[1764837264497,0.67,142.96,142.91,37.9204953]
[1764837264697,0.67,142.96,142.92,4.11855737]
[1764837264920,4.78855737,142.96,142.9,4.77855737]
[1764837265118,6.99545295,142.95,142.9,4.11855737]
[1764837265318,7.66545295,142.95,142.9,11.11628424]
[1764837265624,0.67,142.94,142.9,11.11628424]
[1764837266424,7.66595175,142.94,142.9,11.11628424]
[1764837266826,0.67,142.93,142.9,11.11628424]
[1764837267029,17.48729165,142.97,142.91,4.11855737]
[1764837267215,0.67,142.96,142.92,4.11855737]
[1764837267721,0.67,142.96,142.9,25.15247844]
[1764837267925,0.67,142.96,142.92,4.11855737]
[1764837268510,0.67,142.96,142.92,11.11506207]
[1764837268717,0.67,142.96,142.92,11.77506207]
[1764837268918,7.66502225,142.96,142.92,11.77506207]
[1764837269117,7.66502225,142.96,142.92,11.11506207]
[1764837269418,0.67,142.95,142.92,11.11506207]
[1764837269824,0.67,142.95,142.9,4.11855737]
[1764837270130,4.78855737,142.95,142.89,4.11855737]
[1764837270927,7.66594235,142.94,142.9,6.99769348]
[1764837271822,7.66594235,142.94,142.91,11.11595779]
[1764837272026,6.99562367,142.95,142.91,11.77595779]
[1764837272212,7.66562367,142.95,142.91,11.77595779]
[1764837272724,23.30368201,142.97,142.93,4.11855737]
[1764837272937,0.67,142.96,142.93,4.11855737]
[1764837273526,0.67,142.96,142.91,6.99740042]
[1764837273725,0.67,142.96,142.92,4.11855737]
[1764837274030,0.67,142.96,142.92,11.11533383]
[1764837274503,0.67,142.96,142.93,4.11855737]
[1764837274907,7.66516837,142.96,142.91,11.11587575]
[1764837275307,0.67,142.95,142.91,11.77587575]
[1764837275928,7.66563721,142.95,142.91,11.77587575]
[1764837276355,0.67,142.94,142.91,11.77587575]
[1764837276907,0.67,142.97,142.93,4.11855737]
[1764837277313,4.78855737,142.97,142.91,11.11587575]
[1764837277721,0.67,142.96,142.91,11.11587575]
[1764837277927,6.99545295,142.95,142.91,11.11587575]
[1764837278421,0.67,142.94,142.91,11.77587575]
[1764837279427,24.48133844,142.97,142.91,11.77587575]
[1764837279624,0.67,142.96,142.91,11.77587575]
[1764837280835,6.99545295,142.95,142.91,11.77587575]
[1764837281211,7.65545295,142.95,142.91,11.77587575]
[1764837282712,7.65545295,142.95,142.92,4.11855737]
[1764837285737,7.65545295,142.95,142.92,11.11541216]
[1764837286538,7.65545295,142.95,142.92,11.80541216]
[1764837287145,24.48133844,142.97,142.92,11.11541216]
[1764837287321,0.68,142.94,142.92,11.11541216]
[1764837287635,24.48133844,142.97,142.92,11.11541216]
[1764837287841,0.68,142.96,142.92,11.11541216]
[1764837288042,4.79855737,142.96,142.88,18.18669303]
[1764837288230,4.79855737,142.95,142.89,4.11855737]
[1764837288432,4.79855737,142.95,142.89,11.11693561]
[1764837288640,0.68,142.94,142.89,11.11693561]
[1764837289349,6.99643181,142.93,142.89,11.11693561]
[1764837289748,0.68,142.92,142.89,11.80693561]
[1764837290251,0.68,142.92,142.89,4.80855737]
[1764837290551,0.68,142.92,142.89,11.80684014]
[1764837291955,6.99643181,142.93,142.9,4.11855737]
[1764837292150,7.67643181,142.93,142.9,4.11855737]
[1764837292458,0.68,142.95,142.92,4.11855737]
[1764837292760,7.67514189,142.96,142.93,4.11855737]
[1764837293143,7.67514189,142.96,142.93,4.80855737]
[1764837295267,17.4828089,143.0,142.95,4.11855737]
[1764837295456,0.68,142.98,142.95,4.11855737]
[1764837295953,7.67410665,142.98,142.95,4.11855737]
[1764837296463,7.67410665,142.98,142.95,11.1140098]
[1764837297468,24.47581589,143.0,142.95,11.1140098]
[1764837297758,0.68,142.97,142.95,11.1140098]
[1764837298358,0.68,142.98,142.95,9.62616312]
[1764837298558,0.68,142.98,142.95,6.99545243]
[1764837300062,7.67401852,142.98,142.95,6.99545243]
[1764837300438,0.68,142.97,142.95,6.99545243]
[1764837300640,6.99401852,142.98,142.95,6.99545243]
[1764837300841,7.67401852,142.98,142.95,6.99545243]
[1764837301044,0.68,142.97,142.95,6.99545243]
[1764837304567,6.99369497,142.99,142.95,9.62616312]
[1764837304865,0.68,142.99,142.96,3.32071069]
[1764837305049,0.68,142.99,142.96,7.6848379]
[1764837305370,7.6735248,142.99,142.96,6.9948379]
[1764837305969,0.68,142.99,142.96,10.31563859]
[1764837306762,0.68,143.0,142.97,2.63071069]
[1764837306957,0.68,143.02,142.98,2.63071069]
[1764837307158,0.68,143.02,143.0,9.62371768]
[1764837307370,28.00779472,143.05,143.0,9.62371768]
[1764837307371,0.68,143.03,143.0,9.62371768]
[1764837307570,0.68,143.04,143.02,2.63071069]
[1764837307735,0.68,143.04,143.01,0.69]
[1764837307736,0.68,143.04,143.01,2.63071069]
[1764837308541,0.68,143.04,143.01,3.32071069]
[1764837308742,0.68,143.04,143.01,10.31313916]
[1764837309878,0.2,143.05,143.02,2.63071069]
[1764837310045,0.88,143.05,143.01,7.68242847]
[1764837310247,0.88,143.05,143.02,2.63071069]
[1764837310462,0.2,143.05,143.03,2.63071069]
[1764837311146,0.88,143.05,143.03,2.63071069]
[1764837312168,0.2,143.05,143.03,10.31221354]
[1764837312361,0.2,143.05,143.04,2.63071069]
[1764837314363,0.2,143.05,143.04,9.62176214]
[1764837318457,0.2,143.05,143.04,6.99105145]
[1764837319173,0.2,143.05,143.04,9.62176214]
[1764837331261,0.2,143.05,143.04,10.34176214]
[1764837332281,0.2,143.05,143.04,19.15170706]
[1764837332479,0.2,143.05,143.04,38.25865437]
[1764837333872,1e-08,143.07,143.04,39.427419]
[1764837334189,1e-08,143.07,143.06,27.74951961]
[1764837334389,1e-08,143.07,143.06,35.44951961]
[1764837334686,1e-08,143.07,143.06,36.16951961]
[1764837335083,1e-08,143.07,143.06,45.95708994]
[1764837344776,1e-08,143.07,143.06,37.63628833]
[1764837346194,0.2,143.08,143.07,25.11880892]
[1764837346398,0.2,143.09,143.08,5.26142138]
[1764837346600,0.2,143.1,143.08,22.66349837]
[1764837346795,0.2,143.1,143.09,3.33071069]
[1764837346980,0.2,143.11,143.1,25.11880892]
[1764837347181,1e-08,143.11,143.1,28.44951961]
[1764837347376,1e-08,143.11,143.1,31.24603794]
[1764837348187,1e-08,143.11,143.1,35.60344744]
[1764837348390,1e-08,143.11,143.1,45.21415813]
[1764837349401,1e-08,143.11,143.1,45.91415813]
[1764837349899,1e-08,143.11,143.1,45.21415813]
[1764837351087,1e-08,143.11,143.1,45.91415813]
[1764837355490,0.2,143.12,143.1,45.91415813]
[1764837355685,1e-08,143.12,143.11,12.14065561]
[1764837356022,1e-08,143.12,143.11,19.82065561]
[1764837356195,1e-08,143.12,143.11,19.12065561]
[1764837357014,1e-08,143.12,143.11,21.91717394]
[1764837357505,1e-08,143.12,143.11,28.90480583]
[1764837359013,1e-08,143.12,143.11,29.60480583]
[1764837360409,1e-08,143.12,143.11,31.07260115]
[1764837360718,1e-08,143.15,143.14,25.11880892]
[1764837360895,0.85,143.2,143.15,8.80994492]
[1764837361093,0.2,143.2,143.19,4.09850601]
[1764837361497,0.85,143.2,143.19,4.09850601]
[1764837361825,0.85,143.2,143.19,11.08223392]
[1764837362791,0.2,143.2,143.19,19.89217884]
[1764837363611,0.85,143.2,143.19,19.89217884]
[1764837364110,0.85,143.2,143.19,6.98372791]
[1764837364293,0.85,143.2,143.19,11.08223392]
[1764837367293,0.85,143.2,143.19,4.09850601]
[1764837367498,0.85,143.2,143.19,11.08223392]
[1764837367695,0.85,143.2,143.19,6.98372791]
[1764837367898,0.85,143.2,143.18,7.68]
[1764837368218,0.65,143.19,143.17,11.08285406]
[1764837368913,0.65,143.19,143.17,4.09850601]
[1764837369497,7.63380896,143.19,143.16,4.09850601]
[1764837370006,0.65,143.18,143.16,4.09850601]
[1764837370327,0.65,143.18,143.15,11.08399142]
[1764837371919,0.65,143.18,143.16,4.09850601]
[1764837373122,7.63422961,143.18,143.14,14.66602594]
[1764837373423,7.63422961,143.18,143.15,4.09850601]
[1764837373720,0.66,143.17,143.15,4.09850601]
[1764837373901,0.66,143.17,143.14,14.66602594]
[1764837374101,0.66,143.17,143.15,4.09850601]
[1764837374321,0.66,143.17,143.14,11.77850601]
[1764837375008,7.64498459,143.17,143.13,11.08484948]
[1764837375519,0.66,143.16,143.13,11.08484948]
[1764837378823,7.6452359,143.16,143.13,11.08484948]
[1764837380229,7.6452359,143.16,143.11,46.12406712]
[1764837380527,0.66,143.15,143.12,11.08536992]
[1764837381527,0.66,143.15,143.13,4.09850601]
[1764837381703,0.66,143.15,143.11,20.97535395]
[1764837381908,0.66,143.15,143.1,4.09850601]
[1764837382223,6.98616738,143.14,143.1,11.08660531]
[1764837382415,6.98616738,143.14,143.09,4.09850601]
[1764837382611,0.66,143.13,143.09,4.09850601]
[1764837383132,0.66,143.13,143.09,11.08706448]
[1764837385244,6.98714365,143.12,143.09,4.09850601]
[1764837385413,6.98714365,143.12,143.07,27.901503]
[1764837385734,0.66,143.11,143.07,23.80299699]
[1764837386737,0.66,143.11,143.07,27.901503]
[1764837387030,0.66,143.11,143.07,16.81353648]
[1764837387222,7.64782006,143.11,143.07,11.08780545]
[1764837387622,0.66,143.1,143.07,11.08780545]
[1764837389936,7.64816843,143.1,143.07,11.08780545]
[1764837390119,7.64816843,143.1,143.06,11.08837848]
[1764837390325,0.66,143.09,143.07,6.98958538]
[1764837393417,0.66,143.09,143.07,11.08809139]
[1764837401530,0.66,143.09,143.08,4.09850601]
[1764837403147,6.98785912,143.11,143.08,4.09850601]
[1764837403355,0.72,143.09,143.08,4.09850601]
[1764837404059,0.72,143.09,143.07,11.08772334]
[1764837404432,0.72,143.09,143.05,11.77850601]
[1764837404747,6.989097,143.08,143.05,7.68]
[1764837405130,0.72,143.07,143.05,14.67049626]
[1764837405752,0.72,143.07,143.05,18.76900227]
[1764837406531,0.72,143.09,143.06,4.09850601]
[1764837406734,0.72,143.08,143.04,17.46907972]
[1764837407145,0.72,143.08,143.04,6.99100017]
[1764837408034,0.72,143.08,143.04,11.08950618]
[1764837409056,7.70931191,143.08,143.04,11.08950618]
[1764837409559,0.72,143.07,143.04,11.08950618]
[1764837411868,0.72,143.09,143.06,4.09850601]
[1764837412158,0.72,143.09,143.07,4.09850601]
[1764837412957,0.72,143.09,143.07,11.08785048]
[1764837414150,0.72,143.11,143.08,4.78850601]
[1764837414366,0.72,143.11,143.08,4.09850601]
[1764837415164,0.72,143.11,143.08,11.08738328]
[1764837417363,7.70781723,143.11,143.08,4.09850601]
[1764837417769,0.72,143.1,143.08,11.08750825]
[1764837420953,0.72,143.1,143.08,4.09850601]